fUST/lending_fUST_20240412
["ID","MTS","AMOUNT","RATE_DAILY","PERIOD"]
[322284611,1712933438205,-549.11981524,0.00024147,2]
[322284613,1712933438214,-887.37861442,0.00024147,2]
[322284615,1712933438223,-436.03764798,0.00024147,2]
[322284617,1712933438233,-250.0,0.00024147,2]
[322284619,1712933438242,-2122.71055525,0.00024147,2]
[322284621,1712933438251,-525.07637197,0.00024148,2]
[322284623,1712933438262,-2094.57281327,0.00024163,2]
[322284625,1712933438271,-154.90705577,0.00024166,2]
[322284627,1712933438281,-154.87609912,0.0002417,2]
[322284629,1712933438290,-1765.00944109,0.0002417,2]
[322284631,1712933438299,-174.93541097,0.0002417,2]
[322284633,1712933438308,-347.53010083,0.0002417,2]
[322284635,1712933438318,-176.155045,0.00024183,2]
[322284637,1712933438327,-301.08336384,0.00024733,2]
[322284639,1712933438336,-220.30796474,0.00025,2]
[322284641,1712933438345,-316.82341125,0.00025,2]
[322284643,1712933438354,-237.14597222,0.00025,2]
[322284645,1712933438363,-420.0,0.0002618,2]
[322284647,1712933438372,-173.022555,0.00026191,2]
[322284649,1712933438381,-523.22371756,0.00026523,4]
[322284650,1712933438390,-420.0,0.00026559,2]
[322284652,1712933438399,-1568.19496436,0.00026696,2]
[322284654,1712933438409,-717.68581065,0.0002677,2]
[322284656,1712933438418,-158.495559,0.00027397,2]
[322284658,1712933438427,-166.666666,0.00027397,2]
[322284660,1712933438436,-754.55579857,0.000274,2]
[322284662,1712933438446,-628.0854521,0.00027476,2]
[322284664,1712933438455,-166.666666,0.00028038,2]
[322284666,1712933438464,-1568.19496432,0.00028218,2]
[322284668,1712933438473,-587.0,0.00028386,2]
[322284670,1712933438483,-166.666666,0.00028679,2]
[322284672,1712933438492,-620.4042726,0.0002885,2]
[322284674,1712933438501,-587.0,0.00029215,2]
[322284675,1712933438511,-166.666666,0.00029321,2]
[322284677,1712933438522,-155.04640555,0.00029383,2]
[322284680,1712933438533,-893.523017,0.00029459,2]
[322284682,1712933438542,-823.519216,0.00029459,2]
[322284683,1712933438551,-200.022929,0.00029459,2]
[322284685,1712933438561,-160.090177,0.00029459,2]
[322284687,1712933438571,-684.53746111,0.00029712,2]
[322284689,1712933438580,-1568.19496432,0.00029739,2]
[322284691,1712933438590,-893.523017,0.00029827,2]
[322284693,1712933438599,-823.519216,0.00029827,2]
[322284695,1712933438609,-166.666666,0.00029962,2]
[322284697,1712933438618,-209.0,0.0003,2]
[322284699,1712933438628,-505.99757321,0.00030136,2]
[322284701,1712933438637,-893.523017,0.00030196,2]
[322284703,1712933438646,-823.519216,0.00030196,2]
[322284705,1712933438655,-155.29238538,0.0003031,4]
[322284707,1712933438665,-893.523017,0.00030564,2]
[322284709,1712933438674,-823.519216,0.00030564,2]
[322284711,1712933438684,-166.666666,0.00030603,2]
[322284713,1712933438693,-823.0,0.00030779,2]
[322284715,1712933438702,-154.86062544,0.00030928,4]
[322284717,1712933438712,-482.57987634,0.00030929,4]
[322284719,1712933438721,-188.75283683,0.00030929,4]
[322284721,1712933438730,-1680.37049998,0.00030929,4]
[322284723,1712933438740,-154.95351395,0.00030929,4]
[322284725,1712933438750,-154.90705577,0.00030929,4]
[322284727,1712933438760,-156.60500254,0.00030929,4]
[322284729,1712933438773,-155.08376972,0.00030929,4]
[322284731,1712933438782,-156.01595975,0.00030929,3]
[322284733,1712933438793,-155.53890282,0.00030929,4]
[322284736,1712933438808,-158.51689641,0.00030929,4]
[322284738,1712933438823,-359.22494944,0.00030929,4]
[322284740,1712933438836,-162.95786103,0.00030929,4]
[322284743,1712933438848,-192.57833783,0.00030929,4]
[322284745,1712933438859,-326.58964384,0.00030929,4]
[322284747,1712933438872,-268.82867148,0.00030929,4]
[322284749,1712933438885,-194.24088925,0.00030929,4]
[322284752,1712933438897,-199.53201924,0.0003093,4]
[322284754,1712933438910,-893.523017,0.00030932,2]
[322284756,1712933438924,-823.519216,0.00030932,2]
[322284759,1712933438938,-150.84915085,0.00031116,2]
[322284761,1712933438950,-1568.19496432,0.00031261,2]
[322284763,1712933438961,-2000.0,0.000315,2]
[322284765,1712933438971,-500.0,0.00031508,2]
[322284767,1712933438984,-274.29572658,0.00031508,2]
[322284769,1712933438995,-484.94024492,0.00031508,2]
[322284772,1712933439009,-9570.45298558,0.00031509,7]
[322284774,1712933439020,-2000.0,0.0003151,2]
[322284776,1712933439032,-2000.0,0.0003152,2]
[322284779,1712933439045,-2000.0,0.0003153,2]
[322284781,1712933439058,-2000.0,0.0003154,2]
[322284783,1712933439069,-2000.0,0.0003155,2]
[322284785,1712933439080,-2000.0,0.0003156,2]
[322284787,1712933439096,-2000.0,0.0003157,2]
[322284790,1712933439109,-2000.0,0.0003158,2]
[322284792,1712933439122,-2000.0,0.0003159,2]
[322284794,1712933439134,-2000.0,0.000316,2]
[322284797,1712933439147,-2133.627844,0.0003161,2]
[322284799,1712933439158,-301.6983017,0.00031639,4]
[322284801,1712933439171,-717.68581065,0.0003177,2]
[322284803,1712933439183,-150.77086005,0.00031817,2]
[322284806,1712933439196,-1210.78934384,0.00032,5]
[322284808,1712933439209,-1210.91030182,0.00032,5]
[322284810,1712933439222,-823.0,0.00032137,2]
[322284813,1712933439236,-603.3966034,0.0003217,7]
[322284815,1712933439249,-166.82709291,0.00032711,4]
[322284817,1712933439267,-2000.0,0.00032781,2]
[322284819,1712933439277,-1568.19496432,0.00032782,2]
[322284822,1712933439288,-2142.73886063,0.00032792,2]
[322284824,1712933439299,-1177.2226034,0.00032799,2]
[322284826,1712933439311,-150.0,0.00032817,2]
[322284828,1712933439324,-242.47019394,0.00032817,4]
[322284830,1712933439336,-442.37211124,0.00032817,4]
[322284833,1712933439348,-167602.5108,0.00032882,30]
[322284835,1712933439361,-2266.4,0.00032894,2]
[322284838,1712933439372,-2266.4,0.00032894,2]
[322284841,1712933439383,-2266.4,0.00032894,2]
[322284844,1712933439393,-2266.4,0.00032894,2]
[322284847,1712933439404,-2266.4,0.00032894,2]
[322284852,1712933439415,-2266.4,0.00032894,2]
[322284855,1712933439427,-2266.4,0.00032894,2]
[322284858,1712933439438,-2266.4,0.00032894,2]
[322284861,1712933439449,-264749.80617379,0.00032895,5]
[322284864,1712933439460,-1206.79320679,0.00032985,30]
[322284867,1712933439471,-209.0,0.00033,2]
[322284872,1712933439483,-1152.0,0.00033373,2]
[322284875,1712933439495,-150.0,0.00033817,2]
[322284878,1712933439511,-1210.78934384,0.0003392,5]
[322284881,1712933439522,-1210.91030182,0.0003392,5]
[322284885,1712933439533,-465.00692251,0.00034,4]
[322284888,1712933439544,-924.88179764,0.00034634,4]
[322284891,1712933439555,-153.8365412,0.00034736,7]
[322284895,1712933439566,-385.178804,0.00034757,2]
[322284898,1712933439577,-150.0,0.00034817,2]
[322284902,1712933439591,-76326.4117769,0.00034818,4]
[322284905,1712933439602,-153.8365412,0.00034871,7]
[322284908,1712933439613,-19320.9834,0.00034882,30]
[322284911,1712933439624,-157.44846144,0.00034893,7]
[322284914,1712933439634,-157.44846144,0.0003496,7]
[322284916,1712933439646,-2266.47,0.00034999,2]
[322284918,1712933439656,-154.86062544,0.00035,7]
[322284920,1712933439667,-596.49961109,0.00035,2]
[322284922,1712933439678,-183923.92898075,0.00035,30]
[322284924,1712933439689,-6861.21270692,0.00035,4]
[322284926,1712933439700,-154.86062544,0.00035,4]
[322284929,1712933439711,-153.8365412,0.00035099,7]
[322284931,1712933439722,-153.0,0.00035156,2]
[322284933,1712933439733,-153.0,0.00035156,2]
[322284935,1712933439745,-166.25855229,0.00035275,7]
[322284937,1712933439756,-153.8365412,0.0003532,7]
[322284939,1712933439770,-1152.0,0.00035351,2]
[322284941,1712933439781,-153.8365412,0.0003555,7]
[322284943,1712933439793,-415.12604386,0.00035616,2]
[322284945,1712933439805,-52445.1834193,0.00035616,2]
[322284947,1712933439817,-3728.964104,0.00035616,120]
[322284949,1712933439828,-153.8365412,0.00035653,7]
[322284962,1712933439940,-154.10451123,0.00035656,7]
[322284964,1712933439953,-153.0,0.00035671,2]
[322284966,1712933439962,-150.0,0.00035817,2]
[322284968,1712933439971,-1331.86827823,0.0003584,9]
[322284970,1712933439980,-1332.001332,0.0003584,9]
[322284972,1712933439989,-154.86062544,0.0003589,2]
[322284974,1712933439998,-800.0,0.000359,2]
[322284976,1712933440007,-222.97890748,0.00035931,7]
[322284978,1712933440016,-306.78991651,0.00036,120]
[322284980,1712933440025,-1000.0,0.00036,2]
[322284982,1712933440034,-209.0,0.00036,2]
[322284984,1712933440043,-946.0,0.00036186,2]
[322284986,1712933440053,-251.11,0.00036429,35]
[322284988,1712933440062,-150.5,0.00036429,35]
[322284990,1712933440071,-275.4,0.00036429,35]
[322284992,1712933440080,-150.5,0.00036439,35]
[322284994,1712933440090,-150.5,0.00036439,35]
[322284996,1712933440099,-150.5,0.00036439,35]
[322284998,1712933440108,-150.5,0.00036449,35]
[322285000,1712933440117,-150.5,0.00036449,35]
[322285002,1712933440126,-150.5,0.00036449,35]
[322285004,1712933440136,-2398.0462141,0.00036457,4]
[322285006,1712933440145,-202.57348486,0.00036457,30]
[322285008,1712933440155,-201.21352914,0.00036457,4]
[322285010,1712933440164,-248.89817661,0.00036457,4]
[322285012,1712933440173,-407.87381575,0.00036457,4]
[322285014,1712933440182,-182.12536688,0.00036457,4]
[322285016,1712933440191,-244.09537429,0.00036457,4]
[322285018,1712933440200,-669.10203133,0.00036457,4]
[322285020,1712933440209,-155.25769941,0.00036457,4]
[322285022,1712933440218,-276.06676414,0.00036457,4]
[322285024,1712933440228,-190.72501436,0.00036457,4]
[322285026,1712933440237,-155.60551149,0.00036457,4]
[322285027,1712933440246,-245.68583844,0.00036457,4]
[322285029,1712933440255,-408.01951387,0.00036457,4]
[322285031,1712933440269,-153.0,0.00036466,2]
[322285033,1712933440278,-153.0,0.00036466,2]
[322285035,1712933440287,-153.0,0.00036466,2]
[322285037,1712933440296,-153.0,0.00036466,2]
[322285039,1712933440306,-272.0,0.00036476,35]
[322285041,1712933440315,-3609.0,0.00036476,35]
[322285043,1712933440324,-272.0,0.00036486,35]
[322285045,1712933440334,-3609.0,0.00036486,35]
[322285047,1712933440343,-266.0,0.00036491,35]
[322285049,1712933440353,-165.0,0.00036492,35]
[322285051,1712933440362,-153.0,0.00036493,2]
[322285052,1712933440371,-153.0,0.00036493,2]
[322285054,1712933440380,-306.0,0.00036493,2]
[322285056,1712933440390,-153.0,0.00036493,2]
[322285058,1712933440399,-306.0,0.00036493,2]
[322285060,1712933440409,-290.79,0.00036496,35]
[322285062,1712933440418,-272.0,0.00036496,35]
[322285064,1712933440428,-3609.0,0.00036496,35]
[322285066,1712933440437,-266.0,0.00036501,35]
[322285068,1712933440447,-165.0,0.00036502,35]
[322285070,1712933440456,-266.0,0.00036511,35]
[322285072,1712933440466,-165.0,0.00036512,35]
[322285074,1712933440476,-2102673.43047997,0.00036522,60]
[322285076,1712933440485,-565.23632466,0.00036522,30]
[322285078,1712933440493,-503.21021558,0.00036522,30]
[322285080,1712933440502,-19305.08810574,0.00036522,2]
[322285082,1712933440518,-87754.97214887,0.00036522,2]
[322285084,1712933440528,-992.82515582,0.00036522,120]
[322285086,1712933440537,-349386.38161238,0.00036522,2]
[322285088,1712933440546,-300.0,0.00036522,2]
[322285090,1712933440555,-70025.48947729,0.00036522,2]
[322285092,1712933440564,-779.78428984,0.00036522,2]
[322285094,1712933440574,-1188.73012933,0.00036522,14]
[322285096,1712933440583,-224.04878038,0.00036522,10]
[322285098,1712933440592,-285.9357454,0.00036522,2]
[322285100,1712933440601,-18482.66270319,0.00036522,2]
[322285102,1712933440611,-4079.95635994,0.00036522,2]
[322285104,1712933440620,-314.89606993,0.00036522,2]
[322285106,1712933440629,-149.999999,0.00036522,2]
[322285107,1712933440639,-1154.27863175,0.00036522,30]
[322285109,1712933440648,-280.5987415,0.00036522,2]
[322285111,1712933440657,-9921.73794493,0.00036522,2]
[322285113,1712933440666,-2702.83483731,0.00036522,2]
[322285115,1712933440676,-13451.999999,0.00036522,2]
[322285117,1712933440685,-70343.23826767,0.00036522,32]
[322285119,1712933440694,-151.71050555,0.00036522,2]
[322285121,1712933440704,-197.22992668,0.00036522,30]
[322285123,1712933440714,-8546.72816983,0.00036522,31]
[322285125,1712933440722,-152.51300818,0.00036522,30]
[322285127,1712933440731,-507.67588246,0.00036522,30]
[322285129,1712933440741,-27857.01594341,0.00036522,2]
[322285131,1712933440755,-201.78556884,0.00036522,2]
[322285133,1712933440768,-155.36045823,0.00036522,2]
[322285135,1712933440777,-28545.11163017,0.00036522,2]
[322285137,1712933440788,-429.89113363,0.00036522,2]
[322285139,1712933440798,-327.16504891,0.00036522,30]
[322285141,1712933440806,-1001.62219754,0.00036522,2]
[322285143,1712933440816,-2726.83185342,0.00036522,2]
[322285145,1712933440827,-632.05280502,0.00036522,10]
[322285147,1712933440836,-250.0,0.00036522,14]
[322285149,1712933440845,-250.0,0.00036522,28]
[322285151,1712933440854,-2266.4,0.00036534,2]
[322285153,1712933440864,-4315.92632498,0.00036676,5]
[322285155,1712933440873,-785.293343,0.000367,22]
[322285157,1712933440882,-272.98929388,0.00036711,4]
[322285158,1712933440892,-254.88396033,0.00036711,4]
[322285160,1712933440901,-155.20248988,0.00036711,4]
[322285162,1712933440910,-179.73169894,0.00036711,4]
[322285164,1712933440921,-1739.53830863,0.00036711,4]
[322285166,1712933440930,-802.1000956,0.00036711,35]
[322285169,1712933440940,-1491.08441203,0.00036712,4]
[322285170,1712933440950,-300.0,0.00036713,4]
[322285172,1712933440959,-346.57817207,0.00036713,2]
[322285174,1712933440968,-151.0,0.00036715,4]
[322285176,1712933440977,-150.0,0.00036817,2]
[322285178,1712933440986,-651.57439407,0.00036883,30]
[322285180,1712933440995,-2921.30204191,0.00037,2]
[322285182,1712933441005,-154.10451123,0.00037258,7]
[322285184,1712933441017,-164.257374,0.0003736,2]
[322285186,1712933441026,-1238.43834572,0.00037516,4]
[322285188,1712933441035,-157.44846144,0.0003754,7]
[322285190,1712933441044,-1331.86827823,0.0003776,9]
[322285192,1712933441053,-1332.001332,0.0003776,9]
[322285194,1712933441063,-150.0,0.00037817,2]
[322285196,1712933441072,-153.8365412,0.0003786,7]
[322285198,1712933441081,-151.04886123,0.00037886,2]
[322285200,1712933441091,-10026.92839032,0.00038,2]
[322285202,1712933441101,-500.0,0.00038356,7]
[322285204,1712933441111,-500.0,0.00038356,7]
[322285206,1712933441122,-379.6197034,0.00038356,7]
[322285208,1712933441132,-158.495559,0.00038356,2]
[322285210,1712933441141,-153.8365412,0.00038371,7]
[322285212,1712933441150,-153.8365412,0.00038425,7]
[322285214,1712933441160,-153.8365412,0.00038455,7]
[322285216,1712933441170,-153.8365412,0.00038814,7]
[322285218,1712933441179,-150.0,0.00038817,2]
[322285220,1712933441189,-157.44846146,0.00038832,7]
[322285222,1712933441198,-1613.0,0.00038886,3]
[322285224,1712933441208,-289.314665,0.00038933,2]
[322285226,1712933441218,-200.361075,0.00038933,2]
[322285228,1712933441229,-5000.0,0.00039,120]
[322285230,1712933441239,-153.8365412,0.00039164,7]
[322285232,1712933441249,-1000.0,0.000395,2]
[322285234,1712933441262,-153.8365412,0.00039554,7]
[322285236,1712933441271,-157.507641,0.00039574,2]
[322285238,1712933441281,-153.0,0.00039589,2]
[322285240,1712933441292,-153.0,0.00039589,2]
[322285242,1712933441301,-153.0,0.00039589,2]
[322285244,1712933441311,-1452.94721261,0.0003968,13]
[322285246,1712933441321,-1453.09236218,0.0003968,13]
[322285248,1712933441330,-153.8365412,0.00039716,7]
[322285250,1712933441340,-153.8365412,0.00039757,7]
[322285252,1712933441349,-153.8365412,0.00039908,7]
[322285254,1712933441358,-2413.58641359,0.00039953,120]
[322285256,1712933441368,-366.35400671,0.0004,2]
[322285257,1712933441377,-4458.73854234,0.0004,4]
[322285259,1712933441386,-999.99999901,0.0004,2]
[322285261,1712933441395,-357.65520002,0.0004,2]
[322285263,1712933441405,-154.86062544,0.0004,2]
[322285265,1712933441414,-3945.455595,0.0004,4]
[322285267,1712933441423,-226.52145678,0.0004,4]
[322285269,1712933441433,-45197.3378006,0.00040128,2]
[322285271,1712933441442,-153.8365412,0.0004017,30]
[322285273,1712933441452,-153.8365412,0.00040235,30]
[322285275,1712933441462,-153.8365412,0.00040309,30]
[322285277,1712933441471,-154.10451125,0.00040476,30]
[322285279,1712933441481,-153.8365412,0.00040558,30]
[322285281,1712933441491,-153.83654137,0.00040563,30]
[322285283,1712933441500,-166.2585523,0.00040808,30]
[322285285,1712933441512,-1061.56557096,0.00041,4]
[322285286,1712933441521,-2000.0,0.00041,30]
[322285287,1712933441532,-2000.0,0.0004101,30]
[322285288,1712933441541,-2000.0,0.0004102,30]
[322285289,1712933441550,-2170.605459,0.0004103,30]
[322285290,1712933441561,-1233.0255336,0.00041096,7]
[322285291,1712933441571,-177.6270052,0.00041096,2]
[322285292,1712933441581,-3728.964104,0.00041553,120]
[322285293,1712933441590,-1452.94721261,0.000416,13]
[322285294,1712933441599,-1453.09236218,0.000416,13]
[322285295,1712933441609,-153.0,0.00042138,2]
[322285296,1712933441618,-153.0,0.00042138,2]
[322285297,1712933441628,-153.0,0.00042138,2]
[322285298,1712933441637,-153.0,0.00042412,2]
[322285299,1712933441647,-153.0,0.00042412,2]
[322285300,1712933441656,-153.0,0.00042412,2]
[322285301,1712933441666,-153.0,0.00042412,2]
[322285302,1712933441675,-153.0,0.00042412,2]
[322285303,1712933441684,-2258.0,0.00042774,3]
[322285304,1712933441693,-306.0,0.00042929,2]
[322285305,1712933441702,-154.4409899,0.00042929,2]
[322285306,1712933441712,-153.0,0.00042929,2]
[322285307,1712933441721,-306.0,0.00042929,2]
[322285308,1712933441730,-153.0,0.00042929,2]
[322285310,1712933441739,-153.0,0.00042929,2]
[322285312,1712933441752,-153.0,0.00042931,2]
[322285314,1712933441763,-5478.34252477,0.00043,4]
[322285316,1712933441772,-166.912584,0.00043053,2]
[322285318,1712933441782,-153.0,0.00043203,2]
[322285320,1712933441794,-153.0,0.0004337,2]
[322285322,1712933441803,-153.0,0.0004337,2]
[322285324,1712933441812,-153.0,0.00043377,2]
[322285326,1712933441821,-153.0,0.00043377,2]
[322285328,1712933441832,-153.0,0.00043377,2]
[322285330,1712933441841,-8638.6718615,0.00043836,2]
[322285332,1712933441852,-12199.08638874,0.000445,30]
[322285334,1712933441861,-289.314665,0.00044701,2]
[322285336,1712933441870,-200.361075,0.00044701,2]
[322285338,1712933441880,-412.53493443,0.000448,111]
[322285340,1712933441889,-2829.80922901,0.000448,60]
[322285342,1712933441898,-10000.0,0.000449,120]
[322285344,1712933441907,-10653.96560217,0.00045,120]
[322285346,1712933441916,-8665.29639445,0.00045,120]
[322285348,1712933441925,-212679.0837005,0.00045,30]
[322285350,1712933441935,-5000.0,0.00045,120]
[322285351,1712933441945,-2664.45045838,0.00045,30]
[322285353,1712933441954,-17665.92270579,0.00045,30]
[322285355,1712933441963,-799.93995626,0.00045,30]
[322285357,1712933441972,-200.0,0.00045494,120]
[322285359,1712933441981,-154.84515485,0.000459,4]
[322285361,1712933441990,-2664.0,0.00046,30]
[322285363,1712933441999,-17664.0,0.00046,30]
[322285365,1712933442009,-799.0,0.00046,30]
[322285367,1712933442019,-150.84915085,0.00046673,2]
[322285369,1712933442027,-260749.22721212,0.0004698,120]
[322285371,1712933442037,-3162.0,0.00047052,3]
[322285373,1712933442046,-164.257374,0.00047323,2]
[322285383,1712933442055,-3728.964104,0.00047489,120]
[322285386,1712933442140,-200.0,0.00047917,120]
[322285388,1712933442150,-1344.8,0.00047973,7]
[322285390,1712933442159,-200.0,0.00048273,120]
[322285392,1712933442168,-363.49,0.000487,7]
[322285394,1712933442177,-3373.7209399,0.00049,120]
[322285396,1712933442187,-2000.0,0.00049,68]
[322285398,1712933442196,-2902.363275,0.0004901,68]
[322285400,1712933442206,-158.495559,0.00049315,2]
[322285401,1712933442215,-154.84515485,0.0005,30]
[322285403,1712933442225,-955.53105104,0.0005,60]
[322285406,1712933442236,-565.58159184,0.0005,7]
[322285408,1712933442245,-151.0,0.0005,120]
[322285410,1712933442255,-300.0,0.000503,30]
[322285411,1712933442265,-289.314665,0.00050469,2]
[322285414,1712933442275,-200.361075,0.00050469,2]
[322285416,1712933442285,-166.912584,0.00050881,2]
[322285418,1712933442294,-200.0,0.0005099,120]
[322285419,1712933442303,-156.62948461,0.00051232,3]
[322285421,1712933442312,-157.507641,0.0005175,2]
[322285423,1712933442322,-4427.0,0.00051757,10]
[322285425,1712933442331,-8949.89613114,0.00052573,111]
[322285427,1712933442340,-600.0,0.00053,90]
[322285429,1712933442349,-3728.964104,0.00053425,120]
[322285431,1712933442358,-1001.66887625,0.00054,120]
[322285433,1712933442367,-318.22520126,0.00054794,120]
[322285435,1712933442376,-500.0,0.00054794,120]
[322285437,1712933442385,-500.0,0.00054794,120]
[322285439,1712933442395,-500.0,0.00054794,120]
[322285441,1712933442405,-628.21,0.00054794,120]
[322285443,1712933442414,-505.20185528,0.00054794,120]
[322285445,1712933442423,-500.0,0.00054794,120]
[322285447,1712933442432,-500.0,0.00054794,120]
[322285449,1712933442442,-500.0,0.00054794,120]
[322285451,1712933442451,-500.0,0.00054794,120]
[322285453,1712933442460,-500.0,0.00054794,120]
[322285455,1712933442470,-500.0,0.00054794,120]
[322285457,1712933442479,-500.0,0.00054794,120]
[322285459,1712933442489,-500.0,0.00054794,120]
[322285461,1712933442499,-233.5454295,0.00054794,120]
[322285463,1712933442508,-500.0,0.00054794,120]
[322285465,1712933442519,-151.0,0.00054794,7]
[322285467,1712933442528,-500.0,0.00054794,120]
[322285469,1712933442537,-500.0,0.00054794,120]
[322285471,1712933442546,-500.0,0.00054794,120]
[322285473,1712933442555,-500.0,0.00054794,120]
[322285475,1712933442564,-500.0,0.00054794,120]
[322285477,1712933442573,-644.83993658,0.00054794,120]
[322285479,1712933442583,-503.30332673,0.00054794,120]
[322285481,1712933442592,-500.0,0.00054794,120]
[322285483,1712933442601,-500.0,0.00054794,120]
[322285485,1712933442611,-501.43023592,0.00054794,120]
[322285487,1712933442620,-500.0,0.00054794,120]
[322285489,1712933442629,-501.45130618,0.00054794,120]
[322285491,1712933442639,-500.0,0.00054794,120]
[322285493,1712933442648,-500.0,0.00054794,120]
[322285494,1712933442657,-500.0,0.00054794,120]
[322285496,1712933442666,-500.0,0.00054794,120]
[322285498,1712933442675,-500.0,0.00054794,120]
[322285500,1712933442684,-500.0,0.00054794,120]
[322285502,1712933442693,-501.93000688,0.00054794,120]
[322285504,1712933442702,-500.0,0.00054794,120]
[322285506,1712933442711,-500.0,0.00054794,120]
[322285508,1712933442721,-756.0,0.00054794,120]
[322285510,1712933442730,-500.0,0.00054794,120]
[322285513,1712933442740,-501.09377229,0.00054794,120]
[322285516,1712933442751,-283.95114533,0.00054794,120]
[322285520,1712933442761,-501.88774651,0.00054794,120]
[322285523,1712933442774,-500.0,0.00054794,120]
[322285527,1712933442784,-500.0,0.00054794,120]
[322285529,1712933442794,-187.33083336,0.00054794,120]
[322285531,1712933442803,-500.0,0.00054794,120]
[322285533,1712933442812,-500.0,0.00054794,120]
[322285535,1712933442821,-500.0,0.00054794,120]
[322285537,1712933442830,-1008.13784438,0.00054794,120]
[322285539,1712933442839,-302.0,0.00054794,2]
[322285541,1712933442849,-500.0,0.00054794,120]
[322285543,1712933442858,-500.0,0.00054794,120]
[322285545,1712933442867,-500.0,0.00054794,120]
[322285547,1712933442876,-500.0,0.00054794,120]
[322285549,1712933442885,-500.0,0.00054794,120]
[322285551,1712933442895,-500.0,0.00054794,120]
[322285553,1712933442903,-500.0,0.00054794,120]
[322285555,1712933442913,-500.0,0.00054794,120]
[322285557,1712933442923,-500.0,0.00054794,120]
[322285559,1712933442933,-500.0,0.00054794,120]
[322285561,1712933442942,-500.0,0.00054794,120]
[322285563,1712933442951,-1000.0,0.00054794,7]
[322285565,1712933442961,-500.0,0.00054794,120]
[322285567,1712933442970,-500.0,0.00054794,120]
[322285569,1712933442980,-500.0,0.00054794,120]
[322285571,1712933442989,-500.0,0.00054794,120]
[322285573,1712933443000,-500.0,0.00054794,120]
[322285575,1712933443012,-500.0,0.00054794,120]
[322285577,1712933443020,-500.0,0.00054794,120]
[322285579,1712933443029,-500.0,0.00054794,120]
[322285581,1712933443038,-583.52452806,0.00054794,120]
[322285583,1712933443047,-500.0,0.00054794,120]
[322285585,1712933443056,-500.0,0.00054794,120]
[322285587,1712933443066,-500.0,0.00054794,120]
[322285589,1712933443076,-151.0,0.00054794,7]
[322285591,1712933443085,-500.0,0.00054794,120]
[322285593,1712933443094,-487.54079071,0.00054794,120]
[322285595,1712933443103,-500.0,0.00054794,120]
[322285597,1712933443112,-500.0,0.00054794,120]
[322285599,1712933443121,-500.0,0.00054794,120]
[322285601,1712933443130,-500.0,0.00054794,120]
[322285603,1712933443140,-374.61535197,0.00054794,120]
[322285605,1712933443149,-500.0,0.00054794,120]
[322285606,1712933443158,-500.0,0.00054794,120]
[322285609,1712933443167,-238.85494848,0.00054794,120]
[322285611,1712933443177,-500.0,0.00054794,120]
[322285613,1712933443186,-500.0,0.00054794,120]
[322285614,1712933443195,-500.0,0.00054794,120]
[322285616,1712933443204,-500.0,0.00054794,120]
[322285618,1712933443213,-392.7392275,0.00054794,120]
[322285620,1712933443222,-500.0,0.00054794,120]
[322285622,1712933443231,-500.0,0.00054794,120]
[322285624,1712933443240,-499.46014579,0.00054794,120]
[322285626,1712933443250,-500.0,0.00054794,120]
[322285628,1712933443259,-500.0,0.00054794,120]
[322285630,1712933443271,-155.48973338,0.00054794,120]
[322285632,1712933443279,-615.32062633,0.00054794,120]
[322285634,1712933443288,-500.0,0.00054794,120]
[322285636,1712933443298,-500.0,0.00054794,120]
[322285638,1712933443307,-500.0,0.00054794,120]
[322285641,1712933443316,-500.0,0.00054794,120]
[322285642,1712933443326,-500.0,0.00054794,120]
[322285644,1712933443334,-500.0,0.00054794,120]
[322285646,1712933443344,-500.0,0.00054794,120]